[Event "12th National Amateur Chess-ch 2025"]
[Site "Bihar"]
[Date "2025.03.29"]
[Round "8.9"]
[White "Devansh Keshri"]
[Black "Gadge Vedant"]
[Result "0-1"]
[Annotator "NA RC"]
[ECO "B08"]
[WhiteElo "1633"]
[BlackElo "1667"]
[PlyCount "164"]
[EventDate "2025.03.25"]
[EventCountry "IND"]
[SourceTitle "playchess.com"]
[Source "ChessBase"]
[SourceQuality "1"]
[TimeControl "5400+30"]

1. e4 {[%emt 0:00:01]} g6 {[%emt 0:00:11]} 2. d4 {[%emt 0:00:06]} Bg7 {[%emt 0:00:05]} 3. Nf3 {[%emt 0:00:13]} d6 {[%emt 0:00:08]} 4. Nc3 {[%emt 0:00:19]} Nf6 {[%emt 0:00:32]} 5. Bc4 {[%emt 0:00:07]} O-O {[%emt 0:00:13]} 6. O-O {[%emt 0:00:08]} Nc6 {[%emt 0:03:33]} 7. d5 {[%emt 0:00:37]} Nb8 {[%emt 0:04:03]} 8. Bf4 {[%emt 0:04:00]} h6 {[%emt 0:03:21]} 9. h3 {[%emt 0:07:37]} Nh5 {[%emt 0:04:31]} 10. Be3 {[%emt 0:11:48]} Nd7 {[%emt 0:01:08]} 11. Re1 {[%emt 0:00:52]} Ne5 {[%emt 0:03:22]} 12. Be2 {[%emt 0:01:59]} Nxf3+ {[%emt 0:03:57]} 13. Bxf3 {[%emt 0:00:12]} Nf6 {[%emt 0:00:01]} 14. Qd2 {[%emt 0:02:33]} Kh7 {[%emt 0:01:08]} 15. Rad1 {[%emt 0:03:23]} Nd7 {[%emt 0:00:25]} 16. Bd4 {[%emt 0:02:05]} Ne5 {[%emt 0:01:10]} 17. Be2 {[%emt 0:02:56]} c5 {[%emt 0:00:44]} 18. dxc6 {[%emt 0:00:29]} bxc6 {[%emt 0:00:07]} 19. f4 {[%emt 0:05:31]} Nd7 {[%emt 0:00:19]} 20. Kh1 {[%emt 0:03:29]} Bxd4 {[%emt 0:03:48]} 21. Qxd4 {[%emt 0:00:10]} Qb6 {[%emt 0:00:07]} 22. Qxb6 {[%emt 0:00:52]} axb6 {[%emt 0:00:24]} 23. Bf3 {[%emt 0:00:39]} Nc5 {[%emt 0:03:02]} 24. a3 {[%emt 0:04:55]} Kg7 {[%emt 0:01:29]} 25. Kg1 {[%emt 0:04:18]} g5 {[%emt 0:07:34]} 26. e5 {[%emt 0:00:13]} d5 {[%emt 0:00:00]} 27. fxg5 {[%emt 0:06:33]} hxg5 {[%emt 0:00:00]} 28. Ne2 {[%emt 0:01:41]} Bb7 {[%emt 0:00:00]} 29. Nd4 {[%emt 0:00:29]} e6 {[%emt 0:00:00]} 30. Rd2 {[%emt 0:04:52]} Rfc8 {[%emt 0:00:02]} 31. Rf2 {[%emt 0:01:26]} Rc7 {[%emt 0:01:34]} 32. Kh2 {[%emt 0:03:30]} Ba6 {[%emt 0:00:37]} 33. Ne2 {[%emt 0:03:05]} Rh8 {[%emt 0:01:33]} 34. Ng3 {[%emt 0:00:17]} Kg6 {[%emt 0:00:38]} 35. Bg4 {[%emt 0:01:38]} Nd7 {[%emt 0:00:53]} 36. c3 {[%emt 0:04:10]} c5 {[%emt 0:00:57]} 37. Bd1 {[%emt 0:03:11]} Bb5 {[%emt 0:01:07]} 38. Bc2+ {[%emt 0:00:46]} Kg7 {[%emt 0:00:17]} 39. Bd1 {[%emt 0:00:39]} Kf8 {[%emt 0:02:23]} 40. Nh5 {[%emt 0:02:22]} Bd3 {[%emt 0:00:43]} 41. Nf6 {[%emt 0:01:29]} Nxf6 {[%emt 0:02:01]} 42. Rxf6 {[%emt 0:00:40]} Bf5 {[%emt 0:00:29]} 43. g4 {[%emt 0:00:29]} Bg6 {[%emt 0:00:32]} 44. Ref1 {[%emt 0:00:56]} Ke8 {[%emt 0:00:17]} 45. Ba4+ {[%emt 0:00:13]} Kd8 {[%emt 0:00:19]} 46. Rd1 {[%emt 0:00:46]} Kc8 {[%emt 0:01:51]} 47. Rd2 {[%emt 0:00:41]} Kb7 {[%emt 0:00:32]} 48. Bd1 {[%emt 0:00:56]} Rcc8 {[%emt 0:00:42]} 49. Be2 {[%emt 0:00:51]} Rcd8 {[%emt 0:00:37]} 50. Bd3 {[%emt 0:00:33]} Bxd3 {[%emt 0:00:25]} 51. Rxf7+ {[%emt 0:00:04]} Kc6 {[%emt 0:00:37]} 52. Rxd3 {[%emt 0:00:06]} Rdf8 {[%emt 0:00:13]} 53. Rxf8 {[%emt 0:01:16]} Rxf8 {[%emt 0:00:02]} 54. Kg2 {[%emt 0:00:05]} Rf4 {[%emt 0:00:14]} 55. Re3 {[%emt 0:01:13]} d4 {[%emt 0:00:17]} 56. cxd4 {[%emt 0:00:38]} cxd4 {[%emt 0:00:06]} 57. Rd3 {[%emt 0:01:51]} Kd5 {[%emt 0:04:49]} 58. Rb3 Kc5 {[%emt 0:06:24]} 59. a4 {[%emt 0:04:29]} Kc4 {[%emt 0:00:00]} 60. Rxb6 {[%emt 0:00:19]} Kd3 {[%emt 0:00:00]} 61. a5 Ke2 {[%emt 0:01:45]} 62. Rxe6 {[%emt 0:01:26]} d3 {[%emt 0:00:00]} 63. Rd6 {[%emt 0:00:07]} Ra4 {[%emt 0:00:25]} 64. Rd5 {[%emt 0:02:13]} d2 {[%emt 0:00:32]} 65. e6 {[%emt 0:00:26]} d1=Q {[%emt 0:02:25]} 66. Rxd1 {[%emt 0:00:07]} Kxd1 {[%emt 0:00:06]} 67. e7 {[%emt 0:06:37]} Re4 {[%emt 0:00:09]} 68. b4 {[%emt 0:00:23]} Rxe7 {[%emt 0:00:08]} 69. a6 {[%emt 0:00:26]} Re2+ {[%emt 0:01:13]} 70. Kf3 {[%emt 0:00:29]} Rb2 {[%emt 0:00:08]} 71. a7 {[%emt 0:01:17]} Ra2 {[%emt 0:00:13]} 72. Ke4 {[%emt 0:00:41]} Rxa7 {[%emt 0:00:16]} 73. Kf5 {[%emt 0:00:23]} Rg7 {[%emt 0:00:02]} 74. b5 {[%emt 0:00:35]} Ke2 {[%emt 0:00:08]} 75. b6 {[%emt 0:00:21]} Kf3 {[%emt 0:00:12]} 76. b7 {[%emt 0:00:38]} Rxb7 {[%emt 0:00:00]} 77. Kxg5 {[%emt 0:00:01]} Kg3 {[%emt 0:00:17]} 78. Kf6 {[%emt 0:00:27]} Kh4 {[%emt 0:00:17]} 79. Kg6 {[%emt 0:00:41]} Rb3 {[%emt 0:00:23]} 80. Kf5 {[%emt 0:00:38]} Rf3+ {[%emt 0:00:20]} 81. Kg6 {[%emt 0:00:24]} Rxh3 {[%emt 0:00:07]} 82. g5 {[%emt 0:00:33]} Rg3 {[%emt 0:00:09]} 0-1

[Event "12th National Amateur Chess-ch 2025"]
[Site "Bihar"]
[Date "2025.03.29"]
[Round "8.10"]
[White "Aole Sangharsh"]
[Black "Raj Aryan"]
[Result "1-0"]
[Annotator "NA RC"]
[ECO "A49"]
[WhiteElo "1664"]
[BlackElo "1630"]
[PlyCount "83"]
[EventDate "2025.03.25"]
[EventCountry "IND"]
[SourceTitle "playchess.com"]
[Source "ChessBase"]
[SourceQuality "1"]
[TimeControl "5400+30"]

1. Nf3 {[%emt 0:00:43]} d5 {[%emt 0:00:05]} 2. g3 {[%emt 0:00:06]} Nf6 {[%emt 0:00:21]} 3. Bg2 {[%emt 0:00:11]} g6 {[%emt 0:02:56]} 4. d3 {[%emt 0:00:13]} Bg7 {[%emt 0:00:17]} 5. Nbd2 {[%emt 0:00:07]} Nbd7 {[%emt 0:00:06]} 6. O-O {[%emt 0:00:34]} O-O {[%emt 0:00:10]} 7. e4 {[%emt 0:00:05]} dxe4 {[%emt 0:00:03]} 8. dxe4 {[%emt 0:00:07]} e5 {[%emt 0:00:32]} 9. Qe2 {[%emt 0:02:44]} a5 {[%emt 0:06:51]} 10. Nc4 {[%emt 0:02:31]} Qe7 {[%emt 0:00:37]} 11. b3 {[%emt 0:02:08]} b5 {[%emt 0:00:55]} 12. Ba3 {[%emt 0:00:26]} c5 {[%emt 0:00:53]} 13. Ncd2 {[%emt 0:03:51]} Ba6 {[%emt 0:02:01]} 14. c4 {[%emt 0:03:11]} b4 {[%emt 0:07:37]} 15. Bb2 {[%emt 0:00:17]} Ra7 {[%emt 0:00:39]} 16. Rfe1 {[%emt 0:05:13]} Bb7 {[%emt 0:01:57]} 17. a3 {[%emt 0:01:19]} Rfa8 {[%emt 0:00:02]} 18. a4 {[%emt 0:03:54]} Ne8 {[%emt 0:00:17]} 19. Rad1 {[%emt 0:06:09]} Nc7 {[%emt 0:00:36]} 20. Nf1 {[%emt 0:01:34]} Ne6 {[%emt 0:00:07]} 21. Qd3 {[%emt 0:00:54]} Nd4 {[%emt 0:01:38]} 22. Ne3 {[%emt 0:01:23]} Nf6 {[%emt 0:01:26]} 23. Nd5 {[%emt 0:01:13]} Nxd5 {[%emt 0:02:44]} 24. exd5 {[%emt 0:06:03]} Qd6 {[%emt 0:00:12]} 25. Ng5 {[%emt 0:07:44]} Bc8 {[%emt 0:15:01]} 26. Ne4 {[%emt 0:03:13]} Qf8 {[%emt 0:00:28]} 27. f4 {[%emt 0:06:18]} f5 {[%emt 0:00:22]} 28. Ng5 {[%emt 0:05:39]} e4 {[%emt 0:01:12]} 29. Qb1 {[%emt 0:02:16]} h6 {[%emt 0:00:32]} 30. Nh3 {[%emt 0:00:30]} Rc7 {[%emt 0:03:20]} 31. Kh1 {[%emt 0:00:28]} Bb7 {[%emt 0:08:50]} 32. Ng1 {[%emt 0:00:23]} Kf7 {[%emt 0:02:21]} 33. Ne2 {[%emt 0:00:35]} Qh8 {[%emt 0:00:06]} 34. g4 {[%emt 0:03:52]} Re8 {[%emt 0:06:46]} 35. gxf5 {[%emt 0:01:07]} gxf5 {[%emt 0:00:05]} 36. Ng3 {[%emt 0:00:22]} Kg6 {[%emt 0:03:11]} 37. Bh3 {[%emt 0:00:59]} Bc8 {[%emt 0:03:37]} 38. Rg1 {[%emt 0:00:48]} Nf3 {[%emt 0:01:06]} 39. Nxf5+ {[%emt 0:00:41]} Nxg1 {[%emt 0:08:29]} 40. Rxg1+ {[%emt 0:00:17]} Kh7 {[%emt 0:00:22]} 41. Bxg7 {[%emt 0:02:11]} Qg8 {[%emt 0:01:42]} 42. Be5 {[%emt 0:00:40]} 1-0

[Event "12th National Amateur Chess-ch 2025"]
[Site "Bihar"]
[Date "2025.03.29"]
[Round "8.11"]
[White "Avyay Sharma"]
[Black "Prashant Kumar Singh"]
[Result "0-1"]
[Annotator "NA RC"]
[ECO "C01"]
[WhiteElo "1586"]
[BlackElo "1651"]
[PlyCount "80"]
[EventDate "2025.03.25"]
[EventCountry "IND"]
[SourceTitle "playchess.com"]
[Source "ChessBase"]
[SourceQuality "1"]
[TimeControl "5400+30"]

1. e4 {[%emt 0:00:02]} e6 {[%emt 0:00:31]} 2. d4 {[%emt 0:00:04]} d5 {[%emt 0:00:10]} 3. exd5 {[%emt 0:00:03]} exd5 {[%emt 0:00:06]} 4. c4 {[%emt 0:00:27]} Nf6 {[%emt 0:00:18]} 5. Nc3 {[%emt 0:00:08]} Bb4 {[%emt 0:00:49]} 6. Bd3 {[%emt 0:00:14]} dxc4 {[%emt 0:02:08]} 7. Bxc4 {[%emt 0:00:13]} O-O {[%emt 0:00:14]} 8. Nge2 {[%emt 0:00:05]} Bg4 {[%emt 0:01:14]} 9. f3 {[%emt 0:00:33]} Bf5 {[%emt 0:01:43]} 10. O-O {[%emt 0:00:33]} Nbd7 {[%emt 0:01:40]} 11. Bg5 {[%emt 0:00:47]} h6 {[%emt 0:00:28]} 12. Bh4 {[%emt 0:00:20]} c5 {[%emt 0:01:56]} 13. Ng3 {[%emt 0:03:43]} Bh7 {[%emt 0:05:15]} 14. Bxf6 {[%emt 0:03:06]} Nxf6 {[%emt 0:03:05]} 15. d5 {[%emt 0:01:28]} Bxc3 {[%emt 0:02:14]} 16. bxc3 {[%emt 0:00:17]} Qa5 {[%emt 0:02:07]} 17. Qb3 {[%emt 0:03:53]} h5 {[%emt 0:03:45]} 18. Rfe1 {[%emt 0:01:08]} Rab8 {[%emt 0:04:03]} 19. a4 {[%emt 0:00:54]} h4 {[%emt 0:01:16]} 20. Ne4 {[%emt 0:00:22]} Qd8 {[%emt 0:09:24]} 21. Re2 {[%emt 0:06:10]} h3 {[%emt 0:04:42]} 22. g3 {[%emt 0:04:10]} a6 {[%emt 0:03:29]} 23. Rae1 {[%emt 0:10:20]} Nxe4 {[%emt 0:02:49]} 24. fxe4 {[%emt 0:00:46]} b5 {[%emt 0:00:17]} 25. axb5 {[%emt 0:00:37]} axb5 {[%emt 0:00:02]} 26. e5 {[%emt 0:04:09]} bxc4 {[%emt 0:01:27]} 27. Qxc4 {[%emt 0:00:01]} Qe7 {[%emt 0:02:33]} 28. Qg4 {[%emt 0:03:41]} Rb6 {[%emt 0:01:20]} 29. Qxh3 {[%emt 0:02:07]} Bd3 {[%emt 0:01:37]} 30. Re3 {[%emt 0:00:49]} c4 {[%emt 0:02:21]} 31. Qg2 {[%emt 0:00:59]} Qc5 {[%emt 0:00:32]} 32. Kh1 {[%emt 0:00:22]} Rfb8 {[%emt 0:00:52]} 33. d6 {[%emt 0:01:05]} Bf5 {[%emt 0:01:41]} 34. Qf2 {[%emt 0:01:25]} Be6 {[%emt 0:00:36]} 35. Qc2 {[%emt 0:00:48]} Rb2 {[%emt 0:00:58]} 36. Qa4 {[%emt 0:00:14]} Qd5+ {[%emt 0:03:12]} 37. Re4 {[%emt 0:00:05]} Rb1 {[%emt 0:00:25]} 38. Kg1 {[%emt 0:00:31]} Qxe4 {[%emt 0:00:19]} 39. Rxb1 {[%emt 0:00:12]} Rxb1+ {[%emt 0:00:11]} 40. Kf2 {[%emt 0:00:05]} Rb2+ {[%emt 0:00:08]} 0-1

[Event "12th National Amateur Chess-ch 2025"]
[Site "Bihar"]
[Date "2025.03.29"]
[Round "8.12"]
[White "Akash Srivastav"]
[Black "Vamsi Krishna, R."]
[Result "0-1"]
[Annotator "NA RC"]
[ECO "B01"]
[WhiteElo "1689"]
[BlackElo "1620"]
[PlyCount "94"]
[EventDate "2025.03.25"]
[EventCountry "IND"]
[SourceTitle "playchess.com"]
[Source "ChessBase"]
[SourceQuality "1"]
[TimeControl "5400+30"]

1. e4 {[%emt 0:00:19]} d5 {[%emt 0:00:07]} 2. exd5 {[%emt 0:00:50]} Qxd5 {[%emt 0:00:05]} 3. Nc3 {[%emt 0:00:12]} Qd6 {[%emt 0:00:02]} 4. d4 {[%emt 0:00:22]} Bf5 {[%emt 0:01:09]} 5. Qf3 {[%emt 0:07:24]} Bc8 {[%emt 0:00:01]} 6. Nb5 {[%emt 0:07:52]} Qd8 {[%emt 0:00:23]} 7. Bf4 {[%emt 0:00:53]} Na6 {[%emt 0:00:01]} 8. O-O-O {[%emt 0:02:06]} c6 {[%emt 0:00:26]} 9. Nc3 {[%emt 0:08:49]} Nf6 {[%emt 0:03:14]} 10. Bxa6 {[%emt 0:11:27]} Bg4 {[%emt 0:00:47]} 11. Qg3 {[%emt 0:06:31]} bxa6 {[%emt 0:02:08]} 12. f3 {[%emt 0:02:02]} Be6 {[%emt 0:04:33]} 13. Bc7 {[%emt 0:02:23]} Qd7 {[%emt 0:00:57]} 14. Nge2 {[%emt 0:01:43]} g6 {[%emt 0:05:47]} 15. Be5 {[%emt 0:00:13]} Bg7 {[%emt 0:00:35]} 16. Nf4 {[%emt 0:00:31]} O-O {[%emt 0:00:14]} 17. h4 {[%emt 0:00:28]} h5 {[%emt 0:05:44]} 18. Qf2 {[%emt 0:05:17]} Nd5 {[%emt 0:00:55]} 19. Nfxd5 {[%emt 0:02:05]} cxd5 {[%emt 0:00:29]} 20. g4 {[%emt 0:01:15]} Bh6+ {[%emt 0:08:40]} 21. Kb1 {[%emt 0:01:38]} f6 {[%emt 0:00:10]} 22. g5 {[%emt 0:04:59]} fxg5 {[%emt 0:07:37]} 23. Qe3 {[%emt 0:03:31]} Kh7 {[%emt 0:02:11]} 24. hxg5 {[%emt 0:00:08]} Bg7 {[%emt 0:01:37]} 25. Bxg7 {[%emt 0:02:28]} Kxg7 {[%emt 0:00:05]} 26. Rde1 {[%emt 0:00:10]} Kf7 {[%emt 0:02:27]} 27. Qe5 {[%emt 0:01:13]} Qd6 {[%emt 0:00:54]} 28. Qxd6 {[%emt 0:03:30]} exd6 {[%emt 0:00:04]} 29. Rh4 {[%emt 0:01:18]} Rae8 {[%emt 0:04:16]} 30. Kc1 {[%emt 0:01:27]} Kg7 {[%emt 0:01:31]} 31. f4 {[%emt 0:00:51]} Bf5 {[%emt 0:05:09]} 32. Rxe8 {[%emt 0:01:35]} Rxe8 {[%emt 0:00:52]} 33. Nxd5 {[%emt 0:00:11]} Re2 {[%emt 0:00:30]} 34. Nb4 {[%emt 0:01:46]} a5 {[%emt 0:03:43]} 35. Nd3 {[%emt 0:00:11]} Bxd3 {[%emt 0:00:55]} 36. cxd3 {[%emt 0:00:08]} Rf2 {[%emt 0:00:25]} 37. d5 {[%emt 0:01:43]} Kf7 {[%emt 0:02:14]} 38. a4 {[%emt 0:02:12]} Ke7 {[%emt 0:00:35]} 39. d4 {[%emt 0:00:57]} Kf7 {[%emt 0:00:30]} 40. b3 {[%emt 0:00:33]} Re2 {[%emt 0:13:08]} 41. f5 {[%emt 0:05:59]} Rf2 {[%emt 0:00:15]} 42. fxg6+ {[%emt 0:01:03]} Kxg6 {[%emt 0:00:08]} 43. Kd1 {[%emt 0:00:17]} Kxg5 {[%emt 0:01:39]} 44. Re4 {[%emt 0:00:10]} h4 {[%emt 0:00:51]} 45. Ke1 {[%emt 0:00:13]} Rf4 {[%emt 0:00:35]} 46. Re3 {[%emt 0:02:44]} Kf5 {[%emt 0:02:11]} 47. Re7 {[%emt 0:00:52]} Re4+ {[%emt 0:00:26]} 0-1

[Event "12th National Amateur Chess-ch 2025"]
[Site "Bihar"]
[Date "2025.03.29"]
[Round "8.13"]
[White "Lakshanaa R"]
[Black "Bristy Mukherjee"]
[Result "0-1"]
[Annotator "RC"]
[ECO "A52"]
[WhiteElo "1748"]
[BlackElo "1985"]
[PlyCount "116"]
[EventDate "2025.03.25"]
[EventCountry "IND"]
[SourceTitle "playchess.com"]
[Source "ChessBase"]
[SourceQuality "1"]
[TimeControl "5400+30"]

1. d4 {[%emt 0:00:30]} Nf6 {[%emt 0:00:55]} 2. c4 {[%emt 0:00:12]} e5 {[%emt 0:00:06]} 3. dxe5 {[%emt 0:00:28]} Ng4 {[%emt 0:00:08]} 4. Nf3 {[%emt 0:00:16]} Bc5 {[%emt 0:00:21]} 5. e3 {[%emt 0:00:47]} Nc6 {[%emt 0:00:14]} 6. Nc3 {[%emt 0:02:29]} O-O {[%emt 0:00:40]} 7. Bd3 {[%emt 0:02:07]} Re8 {[%emt 0:02:11]} 8. O-O {[%emt 0:02:59]} Ncxe5 {[%emt 0:08:53]} 9. Be2 {[%emt 0:02:00]} Nxf3+ {[%emt 0:01:05]} 10. Bxf3 {[%emt 0:00:10]} Ne5 {[%emt 0:00:17]} 11. Ne4 {[%emt 0:14:31]} Nxf3+ {[%emt 0:12:57]} 12. Qxf3 {[%emt 0:00:09]} Bf8 {[%emt 0:00:21]} 13. b3 {[%emt 0:04:11]} a5 {[%emt 0:03:28]} 14. Bb2 {[%emt 0:00:33]} Ra6 {[%emt 0:00:51]} 15. Rfd1 {[%emt 0:17:05]} Rg6 {[%emt 0:10:13]} 16. Ng3 {[%emt 0:01:26]} d6 {[%emt 0:00:43]} 17. Rd4 {[%emt 0:08:52]} Be7 {[%emt 0:05:57]} 18. Rf4 {[%emt 0:10:07]} Bg5 {[%emt 0:09:36]} 19. Re4 {[%emt 0:00:29]} b6 {[%emt 0:03:05]} 20. Rd1 {[%emt 0:03:40]} Bd7 {[%emt 0:01:09]} 21. Rxe8+ {[%emt 0:03:44]} Qxe8 {[%emt 0:03:16]} 22. Qe4 {[%emt 0:00:55]} Qxe4 {[%emt 0:12:19]} 23. Nxe4 {[%emt 0:00:06]} Bc6 {[%emt 0:02:53]} 24. Ng3 {[%emt 0:02:26]} h5 {[%emt 0:02:38]} 25. Nxh5 {[%emt 0:06:40]} Bxe3 {[%emt 0:02:05]} 26. Ng3 {[%emt 0:01:26]} Bc5 {[%emt 0:02:01]} 27. Bd4 {[%emt 0:02:02]} Bb4 {[%emt 0:01:35]} 28. f3 {[%emt 0:01:29]} Re6 {[%emt 0:00:31]} 29. Kf2 {[%emt 0:00:54]} b5 {[%emt 0:03:41]} 30. cxb5 {[%emt 0:02:44]} Bxb5 {[%emt 0:00:04]} 31. Rc1 {[%emt 0:00:43]} c5 {[%emt 0:03:49]} 32. Bc3 {[%emt 0:02:02]} Ba3 {[%emt 0:00:35]} 33. Rb1 {[%emt 0:01:38]} Bd3 {[%emt 0:01:16]} 34. Rd1 {[%emt 0:00:37]} c4 {[%emt 0:00:13]} 35. Bd4 {[%emt 0:06:28]} c3 {[%emt 0:03:32]} 36. Rxd3 {[%emt 0:00:59]} c2 {[%emt 0:00:05]} 37. Rc3 {[%emt 0:00:33]} c1=Q {[%emt 0:00:14]} 38. Rxc1 {[%emt 0:00:04]} Bxc1 {[%emt 0:00:04]} 39. Ne4 {[%emt 0:00:49]} d5 {[%emt 0:00:48]} 40. Nc5 {[%emt 0:00:37]} Rc6 {[%emt 0:00:38]} 41. a4 {[%emt 0:00:31]} Ba3 {[%emt 0:00:19]} 42. Nd3 {[%emt 0:00:14]} Rc2+ {[%emt 0:00:08]} 43. Kg3 {[%emt 0:00:07]} Rd2 {[%emt 0:00:43]} 44. Bc5 {[%emt 0:00:12]} Rxd3 {[%emt 0:00:05]} 45. Bxa3 {[%emt 0:00:03]} Rxb3 {[%emt 0:00:06]} 46. Bc5 {[%emt 0:00:08]} Rb2 {[%emt 0:00:35]} 47. Kf4 {[%emt 0:00:30]} f6 {[%emt 0:00:06]} 48. Ke3 {[%emt 0:00:25]} Rxg2 {[%emt 0:00:26]} 49. Bd6 {[%emt 0:00:25]} Kf7 {[%emt 0:00:17]} 50. Bc7 {[%emt 0:00:20]} Ra2 {[%emt 0:00:11]} 51. Bxa5 {[%emt 0:00:06]} Rxa4 {[%emt 0:00:06]} 52. Bb6 {[%emt 0:00:14]} Ke6 {[%emt 0:00:05]} 53. f4 {[%emt 0:00:59]} Kf5 {[%emt 0:00:05]} 54. Bc7 {[%emt 0:00:37]} Ra2 {[%emt 0:00:27]} 55. Kd4 {[%emt 0:00:17]} Rd2+ {[%emt 0:00:05]} 56. Kc5 {[%emt 0:00:25]} Rc2+ {[%emt 0:00:08]} 57. Kd6 {[%emt 0:00:03]} Rxc7 {[%emt 0:00:05]} 58. Kxc7 {[%emt 0:00:02]} d4 {[%emt 0:00:07]} 0-1

[Event "12th National Amateur Chess-ch 2025"]
[Site "Bihar"]
[Date "2025.03.29"]
[Round "8.14"]
[White "Arushi Severin Helen D Silva"]
[Black "Marium Fatima"]
[Result "0-1"]
[Annotator "NA RC"]
[ECO "D02"]
[WhiteElo "1746"]
[BlackElo "1881"]
[PlyCount "160"]
[EventDate "2025.03.25"]
[EventCountry "IND"]
[SourceTitle "playchess.com"]
[Source "ChessBase"]
[SourceQuality "1"]
[TimeControl "5400+30"]

1. d4 {[%emt 0:00:02]} d5 {[%emt 0:02:29]} 2. Nf3 {[%emt 0:00:37]} Nf6 {[%emt 0:00:16]} 3. Bf4 {[%emt 0:00:30]} c5 {[%emt 0:00:23]} 4. e3 {[%emt 0:00:40]} Nc6 {[%emt 0:03:28]} 5. Nbd2 {[%emt 0:01:34]} Bf5 {[%emt 0:00:50]} 6. dxc5 {[%emt 0:03:05]} Nd7 {[%emt 0:06:31]} 7. Bb5 {[%emt 0:05:46]} Nxc5 {[%emt 0:08:38]} 8. O-O {[%emt 0:12:29]} Rc8 {[%emt 0:13:37]} 9. Be5 {[%emt 0:08:24]} Nd7 {[%emt 0:05:20]} 10. Bc3 {[%emt 0:04:00]} e6 {[%emt 0:04:18]} 11. Re1 {[%emt 0:08:10]} Nf6 {[%emt 0:08:14]} 12. h3 {[%emt 0:07:21]} Be7 {[%emt 0:01:54]} 13. Be5 {[%emt 0:08:05]} O-O {[%emt 0:01:01]} 14. c3 {[%emt 0:00:51]} Nxe5 {[%emt 0:01:34]} 15. Nxe5 {[%emt 0:00:29]} Bd6 {[%emt 0:06:57]} 16. Nef3 {[%emt 0:02:38]} h6 {[%emt 0:03:47]} 17. Be2 {[%emt 0:02:16]} Bb8 {[%emt 0:01:24]} 18. Qb3 {[%emt 0:02:57]} Qc7 {[%emt 0:00:43]} 19. Nf1 {[%emt 0:00:23]} Ne4 {[%emt 0:00:55]} 20. Rac1 {[%emt 0:04:20]} Nc5 {[%emt 0:02:24]} 21. Qa3 {[%emt 0:00:49]} Qb6 {[%emt 0:03:44]} 22. Nd4 {[%emt 0:01:59]} Bg6 {[%emt 0:02:52]} 23. Nb3 {[%emt 0:04:28]} Nd3 {[%emt 0:01:45]} 24. Bxd3 {[%emt 0:00:27]} Bxd3 {[%emt 0:00:02]} 25. Nbd2 {[%emt 0:01:47]} Rfd8 {[%emt 0:02:40]} 26. Qb3 {[%emt 0:02:36]} Qc7 {[%emt 0:00:56]} 27. Qd1 {[%emt 0:01:27]} Rd6 {[%emt 0:00:43]} 28. Nf3 {[%emt 0:00:52]} Bc4 {[%emt 0:02:59]} 29. Ra1 {[%emt 0:01:38]} Ra6 {[%emt 0:00:00]} 30. a3 {[%emt 0:00:44]} Rb6 {[%emt 0:02:31]} 31. Qc1 {[%emt 0:01:53]} Bd3 {[%emt 0:00:26]} 32. Qd2 {[%emt 0:01:30]} Be4 {[%emt 0:00:40]} 33. Nd4 {[%emt 0:00:32]} Qe7 {[%emt 0:01:19]} 34. Ne2 {[%emt 0:00:29]} Qe8 {[%emt 0:01:15]} 35. Nfg3 {[%emt 0:01:49]} Bh7 {[%emt 0:00:37]} 36. a4 {[%emt 0:01:45]} a5 {[%emt 0:00:22]} 37. Nf1 {[%emt 0:01:14]} Rc4 {[%emt 0:00:28]} 38. f3 {[%emt 0:01:37]} Rxa4 {[%emt 0:00:10]} 39. Nd4 {[%emt 0:01:36]} Be5 {[%emt 0:02:29]} 40. Ne2 {[%emt 0:00:58]} Qb5 {[%emt 0:00:48]} 41. Rxa4 {[%emt 0:01:09]} Qxa4 {[%emt 0:00:01]} 42. e4 {[%emt 0:01:01]} Rd6 {[%emt 0:00:38]} 43. exd5 {[%emt 0:00:20]} Rxd5 {[%emt 0:00:14]} 44. Qe3 {[%emt 0:00:08]} Bd3 {[%emt 0:00:52]} 45. Nc1 {[%emt 0:00:52]} Bxf1 {[%emt 0:00:31]} 46. Kxf1 {[%emt 0:02:17]} Bf4 {[%emt 0:00:46]} 47. Qe4 {[%emt 0:00:32]} Qxe4 {[%emt 0:00:59]} 48. fxe4 {[%emt 0:00:05]} Rd2 {[%emt 0:00:37]} 49. Ne2 {[%emt 0:00:04]} Be5 {[%emt 0:00:19]} 50. Ra1 {[%emt 0:00:57]} b6 {[%emt 0:00:16]} 51. Ra2 {[%emt 0:00:05]} Kf8 {[%emt 0:01:14]} 52. Ke1 {[%emt 0:00:40]} Rd3 {[%emt 0:00:38]} 53. Kf2 {[%emt 0:01:30]} Ke7 {[%emt 0:00:19]} 54. Ra3 {[%emt 0:01:38]} Kd6 {[%emt 0:01:01]} 55. g3 {[%emt 0:00:42]} Kc6 {[%emt 0:01:42]} 56. g4 {[%emt 0:00:41]} Rxh3 {[%emt 0:00:29]} 57. Ra1 {[%emt 0:00:15]} Rd3 {[%emt 0:00:22]} 58. Ra4 {[%emt 0:00:42]} Rd2 {[%emt 0:00:32]} 59. b4 {[%emt 0:00:38]} Kb5 {[%emt 0:01:31]} 60. Ra3 {[%emt 0:00:04]} axb4 {[%emt 0:00:58]} 61. cxb4 {[%emt 0:00:08]} Rd7 {[%emt 0:00:39]} 62. Ke3 {[%emt 0:00:48]} Kxb4 {[%emt 0:00:18]} 63. Ra2 {[%emt 0:00:21]} b5 {[%emt 0:00:29]} 64. Rc2 {[%emt 0:00:18]} Rc7 {[%emt 0:00:24]} 65. Rd2 {[%emt 0:00:37]} Ka4 {[%emt 0:00:26]} 66. Rd1 {[%emt 0:00:27]} b4 {[%emt 0:00:19]} 67. Nc1 {[%emt 0:00:12]} b3 {[%emt 0:02:32]} 68. Nd3 {[%emt 0:00:42]} f6 {[%emt 0:00:49]} 69. Kd2 {[%emt 0:01:29]} Rc2+ {[%emt 0:00:21]} 70. Ke3 {[%emt 0:00:05]} b2 {[%emt 0:00:47]} 71. Rf1 {[%emt 0:00:32]} Kb3 {[%emt 0:00:27]} 72. Rd1 {[%emt 0:00:09]} Bd6 {[%emt 0:01:04]} 73. e5 {[%emt 0:00:27]} Bxe5 {[%emt 0:00:16]} 74. Rf1 {[%emt 0:00:19]} Bd6 {[%emt 0:00:07]} 75. Kd4 {[%emt 0:00:11]} Ka2 {[%emt 0:00:37]} 76. Nxb2 {[%emt 0:00:21]} Kxb2 {[%emt 0:00:12]} 77. Rf3 {[%emt 0:00:23]} Bc5+ {[%emt 0:00:20]} 78. Ke4 {[%emt 0:00:09]} Rc4+ {[%emt 0:00:06]} 79. Kd3 {[%emt 0:00:05]} Rc3+ {[%emt 0:00:06]} 80. Ke2 {[%emt 0:00:07]} Rxf3 {[%emt 0:00:02]} 0-1